fUSD/lending_fUSD_20250609
["ID","MTS","AMOUNT","RATE_DAILY","PERIOD"]
[365136807,1749484263138,-1012.49,0.00019834,2]
[365136808,1749484263150,-153.6009993,0.00019834,2]
[365136809,1749484263160,-1437.09,0.00019834,2]
[365136810,1749484263171,-1437.09,0.00019834,2]
[365136811,1749484263182,-500.0,0.00019834,2]
[365136812,1749484263192,-490.0,0.00019835,2]
[365136813,1749484263202,-224.20223052,0.00019835,2]
[365136814,1749484263212,-490.0,0.00019835,2]
[365136815,1749484263222,-490.0,0.00019835,2]
[365136816,1749484263232,-223.96255562,0.00019835,2]
[365136817,1749484263242,-216.477764,0.00019835,2]
[365136818,1749484263252,-252.95431897,0.00019835,2]
[365136819,1749484263262,-490.0,0.00019835,2]
[365136820,1749484263272,-490.0,0.00019835,2]
[365136821,1749484263282,-490.0,0.00019835,2]
[365136822,1749484263292,-577.38147213,0.00019835,2]
[365136823,1749484263302,-385.40257588,0.00019835,2]
[365136824,1749484263312,-470.67816879,0.00019835,2]
[365136825,1749484263322,-490.0,0.00019835,2]
[365136826,1749484263333,-490.0,0.00019835,2]
[365136827,1749484263343,-490.0,0.00019835,2]
[365136828,1749484263353,-490.0,0.00019835,2]
[365136829,1749484263364,-490.0,0.00019835,2]
[365136830,1749484263374,-490.0,0.00019835,2]
[365136831,1749484263384,-490.0,0.00019835,2]
[365136832,1749484263394,-490.0,0.00019835,2]
[365136833,1749484263404,-490.0,0.00019835,2]
[365136834,1749484263415,-600.0831739,0.00019835,2]
[365136835,1749484263425,-490.0,0.00019835,2]
[365136836,1749484263435,-490.0,0.00019835,2]
[365136837,1749484263445,-490.0,0.00019835,2]
[365136838,1749484263455,-632.83,0.00019835,2]
[365136839,1749484263466,-531.98,0.00019835,2]
[365136840,1749484263476,-619.56,0.00019835,2]
[365136841,1749484263486,-490.0,0.00019835,2]
[365136842,1749484263496,-451.35300369,0.00019835,2]
[365136843,1749484263506,-490.0,0.00019835,2]
[365136844,1749484263516,-788.72,0.00019835,2]
[365136845,1749484263526,-195.00376144,0.00019835,2]
[365136846,1749484263536,-490.0,0.00019835,2]
[365136847,1749484263546,-490.0,0.00019835,2]
[365136848,1749484263556,-490.0,0.00019835,2]
[365136849,1749484263567,-634.97,0.00019835,2]
[365136850,1749484263577,-501.48,0.00019835,2]
[365136851,1749484263587,-674.77,0.00019835,2]
[365136852,1749484263597,-490.0,0.00019835,2]
[365136853,1749484263608,-490.0,0.00019835,2]
[365136854,1749484263618,-490.0,0.00019835,2]
[365136855,1749484263628,-490.0,0.00019835,2]
[365136856,1749484263638,-1025.63,0.00019835,2]
[365136857,1749484263648,-490.0,0.00019835,2]
[365136858,1749484263659,-490.0,0.00019835,2]
[365136859,1749484263669,-532.44,0.00019835,2]
[365136860,1749484263680,-1059.32,0.00019835,2]
[365136861,1749484263690,-605.26,0.00019835,2]
[365136862,1749484263700,-539.33,0.00019835,2]
[365136863,1749484263710,-1122.21,0.00019835,2]
[365136864,1749484263721,-490.0,0.00019835,2]
[365136865,1749484263731,-761.38,0.00019835,2]
[365136866,1749484263742,-1263.27,0.00019835,2]
[365136867,1749484263752,-841.18,0.00019835,2]
[365136868,1749484263762,-644.51,0.00019835,2]
[365136869,1749484263773,-490.0,0.00019835,2]
[365136870,1749484263784,-490.0,0.00019835,2]
[365136871,1749484263794,-540.66,0.00019835,2]
[365136872,1749484263805,-490.0,0.00019835,2]
[365136873,1749484263815,-479.21221367,0.00019835,2]
[365136874,1749484263826,-1209.55,0.00019835,2]
[365136875,1749484263837,-490.0,0.00019835,2]
[365136876,1749484263847,-490.0,0.00019835,2]
[365136877,1749484263858,-777.08,0.00019835,2]
[365136878,1749484263868,-711.1,0.00019835,2]
[365136879,1749484263879,-490.0,0.00019835,2]
[365136880,1749484263889,-366.59940288,0.00019835,2]
[365136881,1749484263900,-737.16,0.00019835,2]
[365136882,1749484263910,-490.0,0.00019835,2]
[365136883,1749484263921,-635.65,0.00019835,2]
[365136884,1749484263931,-863.93,0.00019835,2]
[365136885,1749484263942,-490.0,0.00019835,2]
[365136886,1749484263953,-1075.53,0.00019835,2]
[365136887,1749484263964,-490.0,0.00019835,2]
[365136888,1749484263975,-490.0,0.00019835,2]
[365136889,1749484263985,-490.0,0.00019835,2]
[365136890,1749484263995,-490.0,0.00019835,2]
[365136891,1749484264006,-1055.49,0.00019835,2]
[365136892,1749484264016,-510.41,0.00019835,2]
[365136893,1749484264027,-650.51,0.00019835,2]
[365136894,1749484264038,-490.0,0.00019835,2]
[365136895,1749484264049,-490.0,0.00019835,2]
[365136896,1749484264060,-490.0,0.00019835,2]
[365136897,1749484264074,-490.0,0.00019835,2]
[365136898,1749484264085,-490.0,0.00019835,2]
[365136899,1749484264095,-490.0,0.00019835,2]
[365136900,1749484264106,-490.0,0.00019835,2]
[365136901,1749484264118,-490.0,0.00019835,2]
[365136902,1749484264128,-492.55,0.00019835,2]
[365136903,1749484264139,-740.83,0.00019835,2]
[365136904,1749484264150,-490.0,0.00019835,2]
[365136905,1749484264161,-490.0,0.00019835,2]
[365136906,1749484264172,-490.0,0.00019835,2]
[365136907,1749484264182,-490.0,0.00019835,2]
[365136908,1749484264193,-490.0,0.00019835,2]
[365136909,1749484264203,-772.44,0.00019835,2]
[365136910,1749484264213,-1484.04,0.00019835,2]
[365136911,1749484264223,-490.0,0.00019835,2]
[365136912,1749484264233,-490.0,0.00019835,2]
[365136913,1749484264243,-490.0,0.00019835,2]
[365136914,1749484264254,-818.39,0.00019835,2]
[365136915,1749484264264,-490.0,0.00019835,2]
[365136916,1749484264275,-490.0,0.00019835,2]
[365136917,1749484264285,-513.62,0.00019835,2]
[365136918,1749484264296,-490.0,0.00019835,2]
[365136919,1749484264306,-942.8,0.00019835,2]
[365136920,1749484264316,-490.0,0.00019835,2]
[365136921,1749484264326,-490.0,0.00019835,2]
[365136922,1749484264336,-490.0,0.00019835,2]
[365136923,1749484264346,-534.21,0.00019835,2]
[365136924,1749484264357,-412.69353731,0.00019835,2]
[365136925,1749484264367,-564.0,0.00019835,2]
[365136926,1749484264377,-399.75033964,0.00019835,2]
[365136927,1749484264387,-490.0,0.00019835,2]
[365136928,1749484264396,-410.34278752,0.00019835,2]
[365136929,1749484264406,-855.0,0.00019835,2]
[365136930,1749484264416,-588.55,0.00019835,2]
[365136931,1749484264425,-490.0,0.00019835,2]
[365136932,1749484264435,-490.0,0.00019835,2]
[365136933,1749484264447,-490.0,0.00019835,2]
[365136934,1749484264457,-201.61021869,0.00019835,2]
[365136935,1749484264468,-533.14,0.00019835,2]
[365136936,1749484264478,-490.0,0.00019835,2]
[365136937,1749484264489,-1503.0,0.00019835,2]
[365136938,1749484264499,-490.0,0.00019835,2]
[365136939,1749484264509,-558.97,0.00019835,2]
[365136940,1749484264519,-942.02,0.00019835,2]
[365136941,1749484264528,-1316.28,0.00019835,2]
[365136942,1749484264538,-1244.55,0.00019835,2]
[365136943,1749484264547,-768.09,0.00019835,2]
[365136944,1749484264557,-490.0,0.00019835,2]
[365136945,1749484264567,-1295.21,0.00019835,2]
[365136946,1749484264576,-604.73,0.00019835,2]
[365136947,1749484264585,-490.0,0.00019835,2]
[365136948,1749484264595,-638.18,0.00019835,2]
[365136949,1749484264605,-490.0,0.00019835,2]
[365136950,1749484264614,-490.0,0.00019835,2]
[365136951,1749484264625,-490.0,0.00019835,2]
[365136952,1749484264635,-1732.03,0.00019835,2]
[365136953,1749484264645,-490.0,0.00019835,2]
[365136954,1749484264655,-1661.45,0.00019835,2]
[365136955,1749484264666,-373.1843446,0.00019835,2]
[365136956,1749484264676,-490.0,0.00019835,2]
[365136957,1749484264686,-1050.96,0.00019835,2]
[365136958,1749484264695,-255.71176165,0.00019835,2]
[365136959,1749484264705,-508.5,0.00019835,2]
[365136960,1749484264715,-490.0,0.00019835,2]
[365136961,1749484264724,-490.0,0.00019835,2]
[365136962,1749484264734,-1042.74,0.00019835,2]
[365136963,1749484264745,-490.0,0.00019835,2]
[365136964,1749484264756,-1191.06,0.00019835,2]
[365136965,1749484264765,-490.0,0.00019835,2]
[365136966,1749484264775,-490.0,0.00019835,2]
[365136967,1749484264785,-490.0,0.00019835,2]
[365136968,1749484264794,-720.85,0.00019835,2]
[365136969,1749484264804,-490.0,0.00019835,2]
[365136970,1749484264814,-1088.63,0.00019835,2]
[365136971,1749484264823,-490.0,0.00019835,2]
[365136972,1749484264833,-1115.79,0.00019835,2]
[365136973,1749484264843,-745.96,0.00019835,2]
[365136974,1749484264852,-490.0,0.00019835,2]
[365136975,1749484264862,-490.0,0.00019835,2]
[365136976,1749484264872,-839.43,0.00019835,2]
[365136977,1749484264882,-490.0,0.00019835,2]
[365136978,1749484264892,-457.65197885,0.00019835,2]
[365136979,1749484264901,-490.0,0.00019835,2]
[365136980,1749484264911,-490.0,0.00019835,2]
[365136981,1749484264920,-490.0,0.00019835,2]
[365136982,1749484264930,-612.51,0.00019835,2]
[365136983,1749484264939,-490.0,0.00019835,2]
[365136984,1749484264949,-1464.35,0.00019835,2]
[365136985,1749484264959,-656.71,0.00019835,2]
[365136986,1749484264969,-490.0,0.00019835,2]
[365136987,1749484264979,-599.19271834,0.00019835,2]
[365136988,1749484264989,-490.0,0.00019835,2]
[365136989,1749484264999,-433.42703624,0.00019835,2]
[365136990,1749484265009,-653.19,0.00019835,2]
[365136991,1749484265019,-490.0,0.00019835,2]
[365136992,1749484265029,-836.11,0.00019835,2]
[365136993,1749484265039,-490.0,0.00019835,2]
[365136994,1749484265048,-747.68,0.00019835,2]
[365136995,1749484265059,-490.0,0.00019835,2]
[365136996,1749484265070,-1386.32,0.00019835,2]
[365136997,1749484265081,-206.22743202,0.00019835,2]
[365136998,1749484265090,-622.58,0.00019835,2]
[365136999,1749484265100,-840.09,0.00019835,2]
[365137000,1749484265111,-490.0,0.00019835,2]
[365137001,1749484265121,-490.0,0.00019835,2]
[365137002,1749484265131,-1253.75,0.00019835,2]
[365137003,1749484265141,-551.55308384,0.00019835,2]
[365137004,1749484265151,-490.0,0.00019835,2]
[365137005,1749484265162,-616.12,0.00019835,2]
[365137006,1749484265171,-1148.42,0.00019835,2]
[365137007,1749484265180,-490.0,0.00019835,2]
[365137008,1749484265190,-490.0,0.00019835,2]
[365137009,1749484265200,-306.04370827,0.00019835,2]
[365137010,1749484265210,-1454.68,0.00019835,2]
[365137011,1749484265221,-885.02,0.00019835,2]
[365137012,1749484265230,-932.85,0.00019835,2]
[365137013,1749484265306,-516.27,0.00019835,2]
[365137014,1749484265316,-626.1,0.00019835,2]
[365137015,1749484265325,-925.04,0.00019835,2]
[365137016,1749484265335,-490.0,0.00019835,2]
[365137017,1749484265345,-751.13,0.00019835,2]
[365137018,1749484265354,-490.0,0.00019835,2]
[365137019,1749484265364,-490.0,0.00019835,2]
[365137020,1749484265373,-1608.62,0.00019835,2]
[365137021,1749484265383,-490.0,0.00019835,2]
[365137022,1749484265397,-789.96,0.00019835,2]
[365137023,1749484265407,-701.92,0.00019835,2]
[365137024,1749484265417,-250.0,0.00019835,2]
[365137025,1749484265427,-660.29,0.00019835,2]
[365137026,1749484265438,-490.0,0.00019835,2]
[365137027,1749484265447,-985.49,0.00019835,2]
[365137028,1749484265457,-490.0,0.00019835,2]
[365137029,1749484265467,-490.0,0.00019835,2]
[365137030,1749484265477,-592.63,0.00019835,2]
[365137031,1749484265487,-490.0,0.00019835,2]
[365137032,1749484265497,-490.0,0.00019835,2]
[365137033,1749484265507,-498.41,0.00019835,2]
[365137034,1749484265517,-1746.51,0.00019835,2]
[365137035,1749484265527,-490.0,0.00019835,2]
[365137036,1749484265537,-857.82,0.00019835,2]
[365137037,1749484265547,-410.75791653,0.00019835,2]
[365137038,1749484265556,-490.0,0.00019835,2]
[365137039,1749484265566,-728.46,0.00019835,2]
[365137040,1749484265576,-810.25,0.00019835,2]
[365137041,1749484265585,-490.0,0.00019835,2]
[365137042,1749484265595,-361.63024177,0.00019835,2]
[365137043,1749484265605,-1252.76,0.00019835,2]
[365137044,1749484265615,-490.0,0.00019835,2]
[365137045,1749484265625,-328.59729077,0.00019835,2]
[365137046,1749484265635,-490.0,0.00019835,2]
[365137047,1749484265645,-490.0,0.00019835,2]
[365137048,1749484265655,-490.0,0.00019835,2]
[365137049,1749484265665,-490.0,0.00019835,2]
[365137050,1749484265675,-490.0,0.00019835,2]
[365137051,1749484265685,-861.8,0.00019835,2]
[365137052,1749484265695,-490.0,0.00019835,2]
[365137053,1749484265704,-490.0,0.00019835,2]
[365137054,1749484265713,-490.0,0.00019835,2]
[365137055,1749484265726,-4052.39,0.00019835,2]
[365137056,1749484265735,-490.0,0.00019835,2]
[365137057,1749484265744,-1000.0,0.00019835,2]
[365137058,1749484265754,-490.0,0.00019835,2]
[365137059,1749484265764,-490.0,0.00019835,2]
[365137060,1749484265773,-2952.28,0.00019835,2]
[365137061,1749484265783,-2088.03,0.00019835,2]
[365137062,1749484265793,-585.82,0.00019835,2]
[365137063,1749484265803,-755.47,0.00019835,2]
[365137064,1749484265813,-1330.95,0.00019835,2]
[365137065,1749484265823,-490.0,0.00019835,2]
[365137066,1749484265833,-1446.22,0.00019835,2]
[365137067,1749484265843,-768.0,0.00019835,2]
[365137068,1749484265853,-2778.17,0.00019835,2]
[365137069,1749484265863,-490.0,0.00019835,2]
[365137070,1749484265873,-861.79,0.00019835,2]
[365137071,1749484265883,-1783.25,0.00019835,2]
[365137072,1749484265893,-1201.04,0.00019835,2]
[365137073,1749484265902,-652.76,0.00019835,2]
[365137074,1749484265912,-490.0,0.00019835,2]
[365137075,1749484265921,-2322.3,0.00019835,2]
[365137076,1749484265931,-560.76,0.00019835,2]
[365137077,1749484265940,-532.57,0.00019835,2]
[365137078,1749484265950,-1345.62,0.00019835,2]
[365137079,1749484265960,-547.07,0.00019835,2]
[365137080,1749484265970,-490.0,0.00019835,2]
[365137081,1749484265980,-2978.42,0.00019835,2]
[365137082,1749484265990,-1466.43,0.00019835,2]
[365137083,1749484265999,-490.63360034,0.00019835,2]
[365137084,1749484266009,-863.07,0.00019835,2]
[365137085,1749484266019,-540.06,0.00019835,2]
[365137086,1749484266028,-490.0,0.00019835,2]
[365137087,1749484266038,-1727.77,0.00019835,2]
[365137088,1749484266047,-490.0,0.00019835,2]
[365137089,1749484266056,-508.87,0.00019835,2]
[365137090,1749484266067,-830.31,0.00019835,2]
[365137091,1749484266079,-926.28,0.00019835,2]
[365137092,1749484266088,-490.0,0.00019835,2]
[365137093,1749484266098,-512.4,0.00019835,2]
[365137094,1749484266107,-582.22,0.00019835,2]
[365137095,1749484266118,-490.0,0.00019835,2]
[365137096,1749484266127,-819.47,0.00019835,2]
[365137097,1749484266137,-1437.0,0.00019835,2]
[365137098,1749484266148,-490.0,0.00019835,2]
[365137099,1749484266159,-490.0,0.00019835,2]
[365137100,1749484266168,-1981.25,0.00019835,2]
[365137101,1749484266177,-1838.98,0.00019835,2]
[365137102,1749484266187,-496.24,0.00019835,2]
[365137103,1749484266198,-586.38,0.00019835,2]
[365137104,1749484266208,-933.86,0.00019835,2]
[365137105,1749484266217,-791.31,0.00019835,2]
[365137106,1749484266227,-1691.22,0.00019835,2]
[365137107,1749484266236,-1698.4,0.00019835,2]
[365137108,1749484266246,-466.78132379,0.00019835,2]
[365137109,1749484266256,-490.0,0.00019835,2]
[365137110,1749484266265,-490.0,0.00019835,2]
[365137111,1749484266274,-1120.22,0.00019835,2]
[365137112,1749484266284,-490.0,0.00019835,2]
[365137113,1749484266294,-490.0,0.00019835,2]
[365137114,1749484266304,-1228.45,0.00019835,2]
[365137115,1749484266314,-490.0,0.00019835,2]
[365137116,1749484266324,-924.22,0.00019835,2]
[365137117,1749484266333,-1153.63,0.00019835,2]
[365137118,1749484266343,-490.0,0.00019835,2]
[365137119,1749484266353,-3242.29,0.00019835,2]
[365137120,1749484266363,-490.0,0.00019835,2]
[365137121,1749484266373,-490.0,0.00019835,2]
[365137122,1749484266382,-490.0,0.00019835,2]
[365137123,1749484266392,-580.55,0.00019835,2]
[365137124,1749484266401,-4278.52,0.00019835,2]
[365137125,1749484266410,-490.0,0.00019835,2]
[365137126,1749484266420,-1367.43,0.00019835,2]
[365137127,1749484266430,-490.0,0.00019835,2]
[365137128,1749484266440,-1055.16,0.00019835,2]
[365137129,1749484266449,-490.0,0.00019835,2]
[365137130,1749484266459,-1100.11,0.00019835,2]
[365137131,1749484266470,-983.66,0.00019835,2]
[365137132,1749484266479,-1457.54,0.00019835,2]
[365137133,1749484266489,-1103.83,0.00019835,2]
[365137134,1749484266499,-575.88,0.00019835,2]
[365137135,1749484266508,-490.0,0.00019835,2]
[365137136,1749484266517,-1070.28,0.00019835,2]
[365137137,1749484266526,-490.0,0.00019835,2]
[365137138,1749484266537,-150.0,0.00019835,2]
[365137139,1749484266546,-490.0,0.00019835,2]
[365137140,1749484266555,-150.0,0.00019835,2]
[365137141,1749484266565,-490.0,0.00019835,2]
[365137142,1749484266574,-1563.25,0.00019835,2]
[365137143,1749484266584,-263.09230434,0.00019835,2]
[365137144,1749484266594,-529.1,0.00019835,2]
[365137145,1749484266603,-1313.97,0.00019835,2]
[365137146,1749484266613,-754.8,0.00019835,2]
[365137147,1749484266623,-1155.82,0.00019835,2]
[365137148,1749484266632,-150.0,0.00019835,2]
[365137149,1749484266642,-1921.18,0.00019835,2]
[365137150,1749484266651,-674.02,0.00019835,2]
[365137151,1749484266661,-1823.89,0.00019835,2]
[365137152,1749484266671,-196.94442383,0.00019835,2]
[365137153,1749484266681,-490.0,0.00019835,2]
[365137154,1749484266690,-1935.65,0.00019835,2]
[365137155,1749484266700,-490.0,0.00019835,2]
[365137156,1749484266709,-754.97,0.00019835,2]
[365137157,1749484266720,-2735.49,0.00019835,2]
[365137158,1749484266730,-1125.71,0.00019835,2]
[365137159,1749484266739,-490.0,0.00019835,2]
[365137160,1749484266748,-1594.53,0.00019835,2]
[365137161,1749484266758,-219.15988668,0.00019835,2]
[365137162,1749484266767,-1148.37,0.00019835,2]
[365137163,1749484266776,-644.87,0.00019835,2]
[365137164,1749484266786,-480.05422847,0.00019835,2]
[365137165,1749484266794,-527.56,0.00019835,2]
[365137166,1749484266804,-568.1,0.00019835,2]
[365137167,1749484266813,-2445.8,0.00019835,2]
[365137168,1749484266822,-490.0,0.00019835,2]
[365137169,1749484266831,-490.0,0.00019835,2]
[365137170,1749484266840,-490.0,0.00019835,2]
[365137171,1749484266849,-802.65,0.00019835,2]
[365137172,1749484266859,-1070.34,0.00019835,2]
[365137173,1749484266869,-3180.99,0.00019835,2]
[365137174,1749484266878,-262.41708235,0.00019835,2]
[365137175,1749484266888,-490.0,0.00019835,2]
[365137176,1749484266897,-2198.03,0.00019835,2]
[365137177,1749484266907,-841.56,0.00019835,2]
[365137178,1749484266917,-490.0,0.00019835,2]
[365137179,1749484266927,-891.08,0.00019835,2]
[365137180,1749484266936,-1283.3,0.00019835,2]
[365137181,1749484266945,-898.27,0.00019835,2]
[365137182,1749484266955,-786.86,0.00019835,2]
[365137183,1749484266965,-511.0,0.00019835,2]
[365137184,1749484266975,-490.0,0.00019835,2]
[365137185,1749484266984,-490.0,0.00019835,2]
[365137186,1749484266994,-1000.0,0.00019835,2]
[365137187,1749484267004,-490.0,0.00019835,2]
[365137188,1749484267013,-742.75,0.00019835,2]
[365137189,1749484267024,-427.18,0.00019835,2]
[365137190,1749484267034,-1457.71,0.00019835,2]
[365137191,1749484267044,-21382.64,0.00019835,2]
[365137192,1749484267054,-3406.97,0.00019835,2]
[365137193,1749484267064,-573.11686742,0.00019835,2]
[365137194,1749484267077,-490.0,0.00019835,2]
[365137195,1749484267087,-831.38,0.00019835,2]
[365137196,1749484267096,-490.0,0.00019835,2]
[365137197,1749484267106,-490.0,0.00019835,2]
[365137198,1749484267115,-490.0,0.00019835,2]
[365137199,1749484267125,-490.0,0.00019835,2]
[365137200,1749484267134,-1992.17,0.00019835,2]
[365137201,1749484267144,-1233.07,0.00019835,2]
[365137202,1749484267154,-490.0,0.00019835,2]
[365137203,1749484267164,-900.38,0.00019835,2]
[365137204,1749484267174,-993.32,0.00019835,2]
[365137205,1749484267183,-617.75,0.00019835,2]
[365137206,1749484267193,-150.0,0.00019835,2]
[365137207,1749484267202,-757.99,0.00019835,2]
[365137208,1749484267212,-1397.96,0.00019835,2]
[365137209,1749484267222,-1036.19,0.00019835,2]
[365137210,1749484267231,-1734.58,0.00019835,2]
[365137211,1749484267241,-209.00475367,0.00019835,2]
[365137212,1749484267251,-647.11,0.00019835,2]
[365137213,1749484267260,-902.56,0.00019835,2]
[365137214,1749484267270,-1999.21,0.00019835,2]
[365137215,1749484267279,-490.0,0.00019835,2]
[365137216,1749484267289,-1486.22,0.00019835,2]
[365137217,1749484267299,-500.0,0.00019835,2]
[365137218,1749484267309,-1105.72,0.00019835,2]
[365137219,1749484267318,-1153.53,0.00019835,2]
[365137220,1749484267327,-500.0,0.00019835,2]
[365137221,1749484267336,-592.58,0.00019835,2]
[365137222,1749484267346,-819.89,0.00019835,2]
[365137223,1749484267355,-490.0,0.00019835,2]
[365137224,1749484267364,-2168.48,0.00019835,2]
[365137225,1749484267374,-150.0,0.00019835,2]
[365137226,1749484267383,-5455.76,0.00019835,2]
[365137227,1749484267393,-490.0,0.00019835,2]
[365137228,1749484267402,-490.0,0.00019835,2]
[365137229,1749484267412,-373.78442438,0.00019835,2]
[365137230,1749484267421,-201.14694014,0.00019835,2]
[365137231,1749484267430,-490.0,0.00019835,2]
[365137232,1749484267440,-490.0,0.00019835,2]
[365137233,1749484267450,-587.73,0.00019835,2]
[365137234,1749484267459,-490.0,0.00019835,2]
[365137235,1749484267469,-963.69,0.00019835,2]
[365137236,1749484267479,-490.0,0.00019835,2]
[365137237,1749484267488,-616.07,0.00019835,2]
[365137238,1749484267498,-932.52,0.00019835,2]
[365137239,1749484267507,-970.65,0.00019835,2]
[365137240,1749484267517,-150.0,0.00019835,2]
[365137241,1749484267527,-1348.63,0.00019835,2]
[365137242,1749484267536,-2274.86,0.00019835,2]
[365137243,1749484267546,-597.2,0.00019835,2]
[365137244,1749484267556,-1654.18,0.00019835,2]
[365137245,1749484267565,-2010.28,0.00019835,2]
[365137246,1749484267575,-490.0,0.00019835,2]
[365137247,1749484267584,-490.0,0.00019835,2]
[365137248,1749484267594,-680.18,0.00019835,2]
[365137249,1749484267604,-490.0,0.00019835,2]
[365137250,1749484267614,-490.0,0.00019835,2]
[365137251,1749484267623,-1020.06,0.00019835,2]
[365137252,1749484267633,-3937.65040387,0.00019835,2]
[365137253,1749484270325,-2545.11959613,0.00019835,2]
[365137254,1749484270335,-490.0,0.00019835,2]
[365137255,1749484270345,-495.97,0.00019835,2]
[365137256,1749484270355,-568.64,0.00019835,2]
[365137257,1749484270366,-566.03,0.00019835,2]
[365137258,1749484270376,-490.0,0.00019835,2]
[365137259,1749484270386,-648.83,0.00019835,2]
[365137260,1749484270396,-559.89,0.00019835,2]
[365137261,1749484270407,-490.0,0.00019835,2]
[365137262,1749484270417,-580.01415465,0.00019835,2]
[365137263,1749484270428,-490.0,0.00019835,2]
[365137264,1749484270697,-490.0,0.00019835,2]
[365137265,1749484270707,-1324.97,0.00019835,2]
[365137266,1749484270717,-634.45,0.00019835,2]
[365137267,1749484270727,-490.0,0.00019835,2]
[365137268,1749484270737,-1450.67,0.00019835,2]
[365137269,1749484270746,-3127.54,0.00019835,2]
[365137270,1749484270756,-490.0,0.00019835,2]
[365137271,1749484270766,-490.0,0.00019835,2]
[365137272,1749484270776,-490.0,0.00019835,2]
[365137273,1749484270785,-725.47,0.00019835,2]
[365137274,1749484270794,-630.27,0.00019835,2]
[365137275,1749484270804,-658.35,0.00019835,2]
[365137276,1749484270813,-504.75,0.00019835,2]
[365137277,1749484270823,-490.0,0.00019835,2]
[365137278,1749484270832,-490.0,0.00019835,2]
[365137279,1749484270842,-562.05,0.00019835,2]
[365137280,1749484270852,-2331.33,0.00019835,2]
[365137281,1749484270861,-532.82,0.00019835,2]
[365137282,1749484270871,-1514.32,0.00019835,2]
[365137283,1749484270880,-510.61,0.00019835,2]
[365137284,1749484270890,-408.9064521,0.00019835,2]
[365137285,1749484270900,-583.42,0.00019835,2]
[365137286,1749484270909,-940.61,0.00019835,2]
[365137287,1749484270919,-490.0,0.00019835,2]
[365137288,1749484270928,-700.78,0.00019835,2]
[365137289,1749484270938,-1252.98,0.00019835,2]
[365137290,1749484270948,-1368.14,0.00019835,2]
[365137291,1749484270957,-500.0,0.0001984,2]
[365137292,1749484270968,-150.0,0.00019862,2]
[365137293,1749484270977,-150.0,0.00019862,2]
[365137294,1749484270988,-150.0,0.00019862,2]
[365137295,1749484270997,-150.0,0.00019862,2]
[365137296,1749484271007,-500.0,0.00019862,2]
[365137297,1749484271017,-500.0,0.00019862,2]
[365137298,1749484271027,-229.09263784,0.00019862,2]
[365137299,1749484271036,-150.0,0.0001989,2]
[365137300,1749484271046,-150.0,0.0001989,2]
[365137301,1749484271056,-500.0,0.0001989,2]
[365137302,1749484271067,-500.0,0.0001989,2]
[365137303,1749484271080,-1000.0,0.000199,2]
[365137304,1749484271089,-469.14572264,0.000199,2]
[365137305,1749484271100,-150.0,0.00019904,2]
[365137306,1749484271111,-150.0,0.00019917,2]